Cogmind - Beta 14 @@@ ROGUE MODE // 2024.09.08 @ 13:25:20 Player: star Result: Destroyed by 3V-JR1(R) with Subdweller Machine Gun Performance ------------- Evolutions (0) 0 Regions Visited (2) 400 Robots Destroyed (24) 120 Value Destroyed (582) 582 Prototype IDs (0) 0 Alien Tech Used (0) 0 Bonus (0) 0 TOTAL SCORE: 1102 Bonus ------- None Cogmind --------- Core Integrity 0/250 Matter 292/300 Energy 93/100 System Corruption 0% Temperature Cool (9) Movement Walking (120) Location -10/Subcaves Parts ------- > --- POWER (1) -------- (None) > --- PROPULSION (2) --- Improved Aluminum Leg Improved Aluminum Leg > --- UTILITY (2) ------ Medium Storage Unit Makeshift Light Armor Plating > --- WEAPON (2) ------- Subdweller Beam Cannon Improved Light Cannon > --- INVENTORY (10) --- High-capacity Storage Unit Improved Targeting Computer Improved Targeting Computer Scrap Shield Field Recycling Unit (0) Subdweller Machine Gun Subdweller Machine Gun Improved Light Cannon Improved Light Cannon Peak State ------------ > --- POWER ------------ (None) > --- PROPULSION ------- Improved Aluminum Leg Improved Aluminum Leg > --- UTILITY ---------- Medium Storage Unit Makeshift Light Armor Plating > --- WEAPON ----------- Subdweller Beam Cannon Improved Light Cannon > --- INVENTORY -------- High-capacity Storage Unit Improved Targeting Computer Improved Targeting Computer Scrap Shield Field Recycling Unit Subdweller Machine Gun Subdweller Machine Gun Improved Light Cannon Improved Light Cannon [Rating: 14] Favorites ----------- Power Ion Engine Engine Ion Engine Propulsion Improved Aluminum Leg Leg Improved Aluminum Leg Wheel Wheel Utility Improved Targeting Computer Storage High-capacity Storage Unit Processor Improved Targeting Computer Protection Makeshift Light Armor Plating Weapon Improved Light Cannon Energy Gun Small Laser Energy Cannon Subdweller Beam Cannon Ballistic Cannon Improved Light Cannon Build | -11 -10 -10 ------- Run | Yrd Mat Sub Slots Evolved . | . . . Power . | . . . Propulsion . | . . . Utility . | . . . Weapon . | . . . Parts Attached 23 | 6 9 8 Power 2 | 1 . 1 Engine 2 | 1 . 1 Core . | . . . Reactor . | . . . Propulsion 7 | 2 3 2 Treads . | . . . Leg 4 | . 2 2 Wheel 3 | 2 1 . Hover . | . . . Flight . | . . . Utility 6 | 1 3 2 Device . | . . . Storage 4 | 1 2 1 Processor 1 | . 1 . Hackware . | . . . Protection 1 | . . 1 Artifact . | . . . Weapon 8 | 2 3 3 Energy Gun 3 | 2 1 . Energy Cannon 1 | . . 1 Ballistic Gun . | . . . Ballistic Cannon 4 | . 2 2 Launcher . | . . . Special Weapon . | . . . Impact Weapon . | . . . Slashing Weapon . | . . . Piercing Weapon . | . . . Special Melee Weapon . | . . . Unidentified Prototypes . | . . . Parts Lost 5 | . . 5 Power 2 | . . 2 Propulsion 2 | . . 2 Utility . | . . . Weapon 1 | . . 1 Highest Loss Streak 3 | . . 3 To Critical Strikes . | . . . Average Slot Usage (%) 96 | . 97 94 Engine 11 | . 14 9 Leg 25 | . 23 27 Wheel 2 | . 4 . Storage 14 | . 14 14 Processor 11 | . 11 10 Protection 1 | . . 3 Energy Gun 2 | . 4 . Energy Cannon 1 | . . 3 Ballistic Cannon 24 | . 23 24 Peak Build Rating 14 | 6 13 14 Average Rating 12 | 4 11 13 On Entrance 6 | . 6 13 Naked Turns . | . . . Heaviest Build 53 | 12 53 53 Greatest Support 26 | 26 26 26 Greatest Overweight (x) 2 | . 2 2 Average Overweight (x) . | . . . Largest Inventory Capacity 20 | 8 20 20 Average Capacity 14 | 6 13 15 Most Carried 10 | 2 9 10 Average Carried 8 | . 7 8 Final Capacity 20 | 8 20 10 Final Carried 10 | 2 9 10 Class Distribution -------------------- 100% | Mutant Dominant Class ---------------- Mutant | -10/Materials Mutant | -10/Subcaves Resources | -11 -10 -10 ----------- Run | Yrd Mat Sub Matter Collected 937 | 227 286 424 Remotely . | . . . Salvage Created 516 | . 423 93 Parts 31 | . 21 10 Haulers Intercepted 2 | . 2 . Recyclers Shooed . | . . . Parts Field Recycled . | . . . Retrieved Matter . | . . . Parts Self-Destructed 6 | . . 6 Prevented . | . . . Kills | -11 -10 -10 ------- Run | Yrd Mat Sub Combat Hostiles Destroyed 21 | . 12 9 Guns 4 | . 4 . Cannons 16 | . 7 9 AOE 1 | . 1 . Classes Destroyed 5 | . 4 1 Hauler 2 | . 2 . Operator 1 | . 1 . Swarmer 9 | . 3 6 Grunt 9 | . 9 . Subdweller 3 | . . 3 Best Kill Streak 6 | . 3 6 Combat Bots Only 6 | . 3 6 Max Kills in Single Turn 1 | . 1 1 Gunslinging . | . . . Exploded 1 | . 1 . Melee . | . . . Uniques/NPCs Destroyed . | . . . Combat | -11 -10 -10 -------- Run | Yrd Mat Sub Hostile Shots Fired 131 | . 47 84 Missed 34 | . 16 18 Damage Taken 1239 | . 383 856 Core 266 | . 66 200 Absorbed by Shields . | . . . Core Remaining (%) 100 | 100 . . Volleys Fired 85 | . 36 49 Largest 2 | . 2 2 Hottest 119 | . 80 119 Shots Fired 170 | . 72 98 Gun 26 | . 26 . Cannon 144 | . 46 98 Launcher . | . . . Special . | . . . Kinetic 139 | . 46 93 Thermal 25 | . 20 5 Explosive . | . . . Electromagnetic 6 | . 6 . Robot Hit Streak 15 | . 13 15 Robot Miss Streak 6 | . 6 3 Penetration Max . | . . . Secondary Targets . | . . . Shots Hit Robots 114 | . 47 67 Core Hits 37 | . 17 20 Critical Kills . | . . . Critical Parts Destroyed . | . . . Critical Strikes 5 | . 2 3 Blast 5 | . 2 3 Melee Attacks . | . . . Impact . | . . . Slashing . | . . . Piercing . | . . . Sneak Attacks . | . . . Combat Hostiles . | . . . Follow-up Attacks . | . . . Damage Inflicted 2201 | . 802 1399 Guns 225 | . 225 . Cannons 1943 | . 552 1391 Explosions 23 | . 23 . Melee . | . . . Ramming 10 | . 2 8 Kinetic 1859 | . 552 1307 Thermal 252 | . 168 84 Explosive . | . . . Electromagnetic 80 | . 80 . Impact . | . . . Slashing . | . . . Piercing . | . . . Highest Corruption . | . . . Average Corruption . | . . . Corruption Purged . | . . . Corruption Blocked . | . . . Overload Shots . | . . . Overflow Damage 19 | . 17 2 Projectiles 19 | . 17 2 Explosions . | . . . Melee . | . . . Knockbacks 14 | . 5 9 Impact . | . . . Kinetic 14 | . 5 9 Secondary . | . . . Self-Inflicted Damage 37 | . 37 . Shots 1 | . 1 . Rammed . | . . . Targets Rammed 6 | . 1 5 Kicked 6 | . 1 5 Crushed . | . . . Highest Temperature 162 | . 162 . Average Temperature 57 | . 57 . Received Heat Transfer 207 | . 138 69 Siege Activations . | . . . Robots Corrupted . | . . . Combat Hostiles . | . . . Parts Fried . | . . . Impact Corruptions . | . . . Robots Melted . | . . . Combat Hostiles . | . . . Parts Melted 1 | . 1 . Heat Transferred 486 | . 375 111 Parts Sabotaged . | . . . Parts Stolen . | . . . Parts Stripped . | . . . Power Chain Reactions 1 | . 1 . Alert | -11 -10 -10 ------- Run | Yrd Mat Sub Peak Influence 317 | . 317 . Initial . | . . . Average 143 | . 149 . Maximum Alert Level 1 | . 1 . Low Security (%) 63 | 100 62 . Level 1 36 | . 37 . Level 2 . | . . . Level 3 . | . . . Level 4 . | . . . Level 5 . | . . . High Security . | . . . Max Security . | . . . Squads Dispatched 3 | . 3 . Investigation 1 | . 1 . Extermination . | . . . Reinforcement 2 | . 2 . Assault . | . . . Garrison . | . . . Intercept . | . . . Searches Triggered . | . . . Construction Impeded . | . . . Haulers Reinforced . | . . . Active Scanning Responses . | . . . Cargo Convoy Interrupts . | . . . Stealth | -11 -10 -10 --------- Run | Yrd Mat Sub Distress Signals 1 | . 1 . Communications Jammed . | . . . Distress Signals . | . . . Times Spotted 31 | . 17 14 Peak Tracking Total 6 | . 4 6 Tactical Retreats 3 | . . 3 Traps | -11 -10 -10 ------- Run | Yrd Mat Sub Traps Triggered 5 | . 1 4 Indirectly . | . . . Trap Hack Attempts . | . . . Triggered . | . . . Disarmed . | . . . Reprogrammed . | . . . Reused . | . . . Traps Extracted . | . . . Installed . | . . . Triggered . | . . . Machines | -11 -10 -10 ---------- Run | Yrd Mat Sub Machines Disabled 3 | . 3 . Max in Single Turn 1 | . 1 . Machines Repaired . | . . . Machines Dismantled . | . . . Machines Sabotaged . | . . . Overloaded Fab Kills . | . . . Hacking | -11 -10 -10 --------- Run | Yrd Mat Sub Machines Accessed 1 | . 1 . Terminals 1 | . 1 . Fabricators . | . . . Repair Stations . | . . . Recycling Units . | . . . Scanalyzers . | . . . Garrison Access . | . . . Total Hacks 2 | . 2 . Successful . | . . . Failed 2 | . 2 . Catastrophic . | . . . Database Lockouts . | . . . Manual 2 | . 2 . Terminals 2 | . 2 . Fabricators . | . . . Repair Stations . | . . . Recycling Units . | . . . Scanalyzers . | . . . Garrison Access . | . . . Terminal Hacks . | . . . Fabricator Hacks . | . . . Repair Station Hacks . | . . . Recycling Unit Hacks . | . . . Scanalyzer . | . . . Garrison Access Hacks . | . . . Unauthorized Hacks . | . . . Terminals . | . . . Fabricators . | . . . Repair Stations . | . . . Recycling Units . | . . . Scanalyzers . | . . . Garrison Access . | . . . Data Cores Recovered . | . . . Used . | . . . Hacking Detections 1 | . 1 . Full Trace Events . | . . . Feedback Events . | . . . Feedback Blocked . | . . . Robot Schematics Acquired . | . . . Robots Built . | . . . Authchips . | . . . Time . | . . . Total Robot Build Rating . | . . . Part Schematics Acquired . | . . . Parts Built . | . . . Authchips . | . . . Time . | . . . Total Part Build Rating . | . . . Parts Repaired . | . . . Time . | . . . Parts Recycled . | . . . Recycled Matter . | . . . Retrieved Matter . | . . . Retrieved Components . | . . . Parts Scanalyzed . | . . . Part Schematics Acquired . | . . . Parts Damaged . | . . . Bothacking | -11 -10 -10 ------------ Run | Yrd Mat Sub Used RIF Installer . | . . . Robots Hacked . | . . . Non-combat . | . . . Combat . | . . . Robot Hacks Applied . | . . . Relay Couplers Released . | . . . Fabnet Peak Effective % . | . . . Robots Rewired . | . . . Allies Hacked . | . . . Hacks Repelled . | . . . Allies | -11 -10 -10 -------- Run | Yrd Mat Sub Total Allies . | . . . Largest Group . | . . . Highest-Rated Group . | . . . Highest-Rated Ally . | . . . Total Orders . | . . . Ally Attacks . | . . . Total Damage . | . . . Kills . | . . . Allies Corrupted . | . . . Allies Melted . | . . . Intel | -11 -10 -10 ------- Run | Yrd Mat Sub Robot Analysis Total . | . . . Derelict Logs Recovered . | . . . Drone Launches . | . . . Drone Recoveries . | . . . Exploration | -11 -10 -10 ------------- Run | Yrd Mat Sub Turns Passed 2305 | 43 1028 1234 Spaces Moved 1067 | 38 391 638 Core 4 | 4 . . Treads . | . . . Legs 912 | . 274 638 Wheels 151 | 34 117 . Hover . | . . . Flight . | . . . Fastest Speed 50 | 50 90 120 Average Speed 136 | 84 118 151 Slowest Speed 260 | 90 260 260 Overloaded Moves . | . . . Propulsion Burnouts . | . . . Robots Hopped . | . . . Cave-ins Triggered . | . . . Exploration Rate (%) 36 | 3 70 36 Regions Visited 2 Branch Regions 1 Pre-discovered Areas . | . . . Known Exits Taken . | . . . Unknown Exits Taken 2 | 1 1 . Scrap Searched 4 | . . 4 Spaces Dug . | . . . Terrain Destroyed 5 | . 5 . Melee . | . . . Projectile 2 | . 2 . AOE 3 | . 3 . Terrain Rammed . | . . . Walls Destroyed . | . . . Machines Disabled . | . . . Actions | -11 -10 -10 --------- Run | Yrd Mat Sub Total 1736 | 45 887 804 Wait 527 | . 427 100 Move 1065 | 37 390 638 Hop . | . . . Pick Up 20 | 2 14 4 Fast Attach 7 | 6 1 . Attach 4 | . . 4 Detach . | . . . Swap 12 | . 8 4 Drop 10 | . 10 . Fire 85 | . 36 49 Melee . | . . . Ram . | . . . Kick 6 | . 1 5 Crush . | . . . Escape Stasis . | . . . Rewire . | . . . Trap . | . . . Miscellaneous . | . . . Route ------- -11/Scrapyard -10/Materials (discovered 2 exits: [*Min] / [*Sub]) -10/Subcaves History --------- Turn | Location | Event 13 | -11/Scrapyard | Discovered new exit (range 16) 44 | -11/Scrapyard | Entered Materials 312 | -10/Materials | Build established: Mutant 348 | -10/Materials | Discovered new exit (range 8) 945 | -10/Materials | Discovered new exit (range 5) 1072 | -10/Materials | Entered Subcaves 1534 | -10/Subcaves | A swath of the cavern ceiling suddenly collapsed 1919 | -10/Subcaves | Core integrity fell below 50% 1986 | -10/Subcaves | Lost 3 parts (1p1n1w) 2170 | -10/Subcaves | Core integrity fell below 20% 2306 | -10/Subcaves | Destroyed by 3V-JR1(R) with Subdweller Machine Gun Last Messages --------------- 02015_ Found 43 Matter. 02016_ Acquired 43 matter. 02016_ Searching scrap... 02016_ Found Sub. Beam Cannon. 02016_ Found Shrapnel Trap. 02016_ Found 51 Matter. 02017_ Acquired 33 matter. 02021_ Searching scrap... 02021_ Found Mak. Light Armor Plating. 02021_ Found 49 Matter. 02026_ Acquired Sub. Beam Cannon. 02027_ Acquired Imp. Light Cannon. 02032_ Subatomizers dissect the Sub. Power Source. 02032_ Acquired 10 matter. 02034_ Discarded Imp. Targeting Computer. 02034_ Acquired Mak. Light Armor Plating. 02046_ Subatomizers dissect the Sub. Power Source. 02174_ HW-Q4X(R) destroyed. 02189_ Acquired 4 matter. 02191_ Acquired 18 matter. Map ----- +----------------------------------------------------+ | ?????????????????????????????????????????????????? | | ?????????????????????????????????????????????????? | | ?????????????????????????????????????????????????? | | ?????????????????????????????????????????????????? | | ?????????????????????????????????????????????????? | | ?????????????????????????????????????????????????? | | ?????????????????????????????????????????????????? | | ?????????????????????????????????????????????????? | | ????????????????????????????????????????????????? | | ???????????????????????????????????????????????? | | ???????????????????????????????????????????????? | | $???????????????????????????????????????????????? | | #???????????????????????????????????????????????? | | ????????????????????????????????????????????????? | | ????????????????????????????????????????????????? | | "??????????????##???????????#????????????????????? | | ##?????????????# #????????##%????????????????????? | | ?????????????## #???????# #????????????????????? | | ##???????????## ######## #????????????????????? | | ##??????????# # # ##???????????????????? | | # ####???????# #???????????????????? | | #?????# # # #???????????????????? | | ## ##?????????? ##??# ##???????????????????? | | ### #?????????## ????# ##???????????????????? | | ??# # ##????????# #?##### #???????????????????? | | ??#### ##???????## ### @;R #???????????????????? | | ?????## ##??????# R #???????????????????? | | ??????## ##????### ## ###???????????????????? | | ???????## ##??## ########?????????????????????? | | ????????## #### " #???????????????????????? | | ?????????# ## "" #??????????????????????? | | ##???????# ## "" " #??????????????????????? | | ##??????# "" "" ????????????????????? | | #??????## ####""" ????????????????????? | | #???????# #???#### ????????????????????? | | # #???????### ##???????# ????????????????????? | | # #????????? ##????????? "?????????????????????? | | # #????????#####?????????????????????????????????? | | ##??????????????????????????????????????????????? | | #???????????????????????????????????????????????? | | #####???????????????????????????????????????????? | | # # #?###???????????????????????????????????????? | | ## ## ##??????????????????????????????????????? | | ## #??????????????????????????????????????? | | ### ##?????????????????????????????????????? | | ## # #?????????????????????????????????????? | | # #????????????????????????????????????? | | ##? #??????????????????????????????????? | | ##??? #?????????????????????????????????? | | #####??? #?????????????????????????????????? | +----------------------------------------------------+ Best States ------------- Heat Dissipation 25 Energy Generation 10 Energy Capacity 250 Matter Stores 300 Matter Capacity 300 Sight Range 16 Terrain Scan Density 10 Armor Coverage 100 Evasion (%) 55 Targeting Accuracy 6 Item Schematics ----------------- None Robot Schematics ------------------ None Fabricated ------------ Nothing Alien Tech Used ----------------- None Achievements -------------- None Challenges ------------ None Game ------ Seed StormNeutronSuperbattery Manual? 0 Play Time 00:14:59 Cumulative 71.5 hours Start 2024.09.08 @ 13:10:33 End 2024.09.08 @ 13:25:20 Sessions 1 Manual Loads 0 Difficulty Rogue Special Mode None Game No. 131 Rogue 131 Adventurer 0 Explorer 0 Win Type - Total 0 Types 0/0/0/0/0/0/0/0/0 Lore% 35 Gallery% 46 Achievement% 37 Wizard Run 0 Options --------- Layout 0 ASCII 0 Keyboard 1 Movement Numpad Keybinds 0 Fullscreen 2 Font 18/SmallcapsGlow Map View 76x50 Zoom Use 0% Tactical HUD 1 Map Filters NONE Filters NONE Steam 1 RUN: 1ca28399-0480-46d7-961d-103778071e6a